[Event "Live Chess"]
[Site "Chess.com"]
[Date "2021.02.06"]
[Round "-"]
[White "PoleStarChess"]
[Black "Ananya670"]
[Result "0-1"]
[CurrentPosition "6k1/6pp/5p2/b7/8/8/1q6/2rK4 w - -"]
[Timezone "UTC"]
[ECO "D02"]
[ECOUrl "https://www.chess.com/openings/Queens-Pawn-Opening-Zukertort-Chigorin-Variation"]
[UTCDate "2021.02.06"]
[UTCTime "20:31:52"]
[WhiteElo "1085"]
[BlackElo "1146"]
[TimeControl "1200+10"]
[Termination "Ananya670 won by checkmate"]
[StartTime "20:31:52"]
[EndDate "2021.02.06"]
[EndTime "20:49:25"]
[Link "https://www.chess.com/live/game/6472995708"]

1. d4 {[%clk 0:20:07.6]} 1... d5 {[%clk 0:20:07.7]} 2. Nf3 {[%clk 0:20:12.1]} 2... Nc6 {[%clk 0:20:11.8]} 3. Nc3 {[%clk 0:20:16.8]} 3... Nf6 {[%clk 0:20:19.8]} 4. e4 {[%clk 0:20:22.5]} 4... e6 {[%clk 0:20:27.6]} 5. exd5 {[%clk 0:20:23.9]} 5... exd5 {[%clk 0:20:35.3]} 6. Qe2+ {[%clk 0:20:30]} 6... Be7 {[%clk 0:20:43.2]} 7. h4 {[%clk 0:20:22.8]} 7... O-O {[%clk 0:20:51.3]} 8. Ne5 {[%clk 0:20:18.4]} 8... Bd6 {[%clk 0:20:50.6]} 9. Nxc6 {[%clk 0:20:12.9]} 9... bxc6 {[%clk 0:20:58.1]} 10. Be3 {[%clk 0:19:53.9]} 10... Ng4 {[%clk 0:21:03.1]} 11. Bg5 {[%clk 0:19:36.9]} 11... f6 {[%clk 0:20:46.9]} 12. Bd2 {[%clk 0:19:41.6]} 12... Re8 {[%clk 0:20:53.4]} 13. Be3 {[%clk 0:19:45.7]} 13... Nxe3 {[%clk 0:21:00.1]} 14. fxe3 {[%clk 0:19:53.8]} 14... Bf4 {[%clk 0:21:01]} 15. Nd1 {[%clk 0:19:55.3]} 15... Bg3+ {[%clk 0:20:50]} 16. Kd2 {[%clk 0:19:59.2]} 16... c5 {[%clk 0:20:52.5]} 17. dxc5 {[%clk 0:19:10.4]} 17... c6 {[%clk 0:20:54.9]} 18. c4 {[%clk 0:19:01.4]} 18... Qa5+ {[%clk 0:20:58.3]} 19. Nc3 {[%clk 0:19:04.1]} 19... Qxc5 {[%clk 0:20:52.3]} 20. Rb1 {[%clk 0:18:54.8]} 20... Bf4 {[%clk 0:20:54]} 21. Nd1 {[%clk 0:18:45]} 21... Bb7 {[%clk 0:20:53.7]} 22. b4 {[%clk 0:18:39.5]} 22... Qd6 {[%clk 0:20:51.2]} 23. c5 {[%clk 0:18:36.2]} 23... Qd8 {[%clk 0:20:54.5]} 24. Rg1 {[%clk 0:18:09.9]} 24... a5 {[%clk 0:20:45.8]} 25. g3 {[%clk 0:18:16.1]} 25... Ba6 {[%clk 0:20:46.2]} 26. Qf3 {[%clk 0:18:11.5]} 26... Bc7 {[%clk 0:20:52.8]} 27. Bxa6 {[%clk 0:17:56.2]} 27... Rxa6 {[%clk 0:20:54.3]} 28. Re1 {[%clk 0:18:02]} 28... axb4 {[%clk 0:20:57.5]} 29. Rxb4 {[%clk 0:17:52.8]} 29... Ba5 {[%clk 0:21:04]} 30. Nc3 {[%clk 0:17:41.2]} 30... Bxb4 {[%clk 0:21:09]} 31. Qe2 {[%clk 0:17:48.8]} 31... Rxa2+ {[%clk 0:21:12.2]} 32. Kd1 {[%clk 0:17:47.8]} 32... Rxe2 {[%clk 0:21:19.6]} 33. Rxe2 {[%clk 0:17:55.6]} 33... Bxc3 {[%clk 0:21:27.5]} 34. Kc2 {[%clk 0:17:58.5]} 34... Qa5 {[%clk 0:21:32.6]} 35. Kb3 {[%clk 0:17:57.9]} 35... Qb4+ {[%clk 0:21:34.5]} 36. Kc2 {[%clk 0:18:02.3]} 36... Ra8 {[%clk 0:21:35.8]} 37. Rd2 {[%clk 0:17:45.5]} 37... Bxd2 {[%clk 0:21:31.6]} 38. Kd1 {[%clk 0:17:48.1]} 38... Ra1+ {[%clk 0:21:36.1]} 39. Ke2 {[%clk 0:17:56.9]} 39... Re1+ {[%clk 0:21:36.9]} 40. Kf3 {[%clk 0:18:03]} 40... Rxe3+ {[%clk 0:21:42]} 41. Kg2 {[%clk 0:18:10.8]} 41... Qb2 {[%clk 0:21:47.1]} 42. Kh3 {[%clk 0:18:17.7]} 42... Re4 {[%clk 0:21:47.8]} 43. h5 {[%clk 0:18:22]} 43... Ba5 {[%clk 0:21:53.1]} 44. g4 {[%clk 0:18:28.4]} 44... Qb3+ {[%clk 0:21:53.1]} 45. Kh4 {[%clk 0:18:36.6]} 45... Re3 {[%clk 0:21:52.6]} 46. g5 {[%clk 0:18:28.9]} 46... Rh3+ {[%clk 0:22:01]} 47. Kg4 {[%clk 0:18:37.4]} 47... Qg3+ {[%clk 0:22:09.3]} 48. Kf5 {[%clk 0:18:45.7]} 48... Qf3+ {[%clk 0:22:11.5]} 49. Ke6 {[%clk 0:18:54]} 49... Qe4+ {[%clk 0:22:14.2]} 50. Kd6 {[%clk 0:19:02.5]} 50... Rxh5 {[%clk 0:22:15]} 51. Kxc6 {[%clk 0:19:10.4]} 51... Rxg5 {[%clk 0:22:19]} 52. Kb5 {[%clk 0:19:18.5]} 52... Qb4+ {[%clk 0:22:24.1]} 53. Kc6 {[%clk 0:19:24.9]} 53... Rg4 {[%clk 0:22:27.8]} 54. Kxd5 {[%clk 0:19:31.8]} 54... Rd4+ {[%clk 0:22:34.5]} 55. Kc6 {[%clk 0:19:40.1]} 55... Rh4 {[%clk 0:22:35.4]} 56. Kd6 {[%clk 0:19:47.6]} 56... Rc4 {[%clk 0:22:29.2]} 57. Kd5 {[%clk 0:19:48.8]} 57... Qxc5+ {[%clk 0:22:36.7]} 58. Ke6 {[%clk 0:19:56.5]} 58... Qb6+ {[%clk 0:22:43]} 59. Kf5 {[%clk 0:20:03.8]} 59... Rc5+ {[%clk 0:22:49.7]} 60. Ke4 {[%clk 0:20:12.3]} 60... Qb4+ {[%clk 0:22:59]} 61. Kd3 {[%clk 0:20:20.4]} 61... Rc3+ {[%clk 0:23:08]} 62. Ke2 {[%clk 0:20:27.2]} 62... Qb2+ {[%clk 0:23:17.2]} 63. Kd1 {[%clk 0:20:32.9]} 63... Rc1# {[%clk 0:23:26.5]} 0-1

[Event "Live Chess"]
[Site "Chess.com"]
[Date "2021.02.06"]
[Round "-"]
[White "Pusheen_the_PR0"]
[Black "ExcelQueen"]
[Result "1-0"]
[CurrentPosition "8/6Qk/3N4/6R1/8/3PK3/PP5P/2r5 b - -"]
[Timezone "UTC"]
[ECO "C50"]
[ECOUrl "https://www.chess.com/openings/Giuoco-Piano-Game-Four-Knights-Game"]
[UTCDate "2021.02.06"]
[UTCTime "20:32:08"]
[WhiteElo "718"]
[BlackElo "578"]
[TimeControl "1200+10"]
[Termination "Pusheen_the_PR0 won by checkmate"]
[StartTime "20:32:08"]
[EndDate "2021.02.06"]
[EndTime "20:49:10"]
[Link "https://www.chess.com/live/game/6472996177"]

1. e4 {[%clk 0:20:05]} 1... e5 {[%clk 0:20:06.8]} 2. Nf3 {[%clk 0:20:13.8]} 2... Nc6 {[%clk 0:20:13.6]} 3. Bc4 {[%clk 0:20:22.2]} 3... Bc5 {[%clk 0:20:22.6]} 4. Nc3 {[%clk 0:20:29.4]} 4... Nf6 {[%clk 0:20:23.3]} 5. Ng5 {[%clk 0:20:33.7]} 5... O-O {[%clk 0:19:33.7]} 6. d3 {[%clk 0:20:34.1]} 6... h6 {[%clk 0:19:35]} 7. Nxf7 {[%clk 0:20:34.8]} 7... Rxf7 {[%clk 0:19:40.4]} 8. Qf3 {[%clk 0:20:21.3]} 8... d5 {[%clk 0:19:32.7]} 9. exd5 {[%clk 0:20:28.9]} 9... Nd4 {[%clk 0:19:35.2]} 10. Qg3 {[%clk 0:20:26.6]} 10... Nxc2+ {[%clk 0:19:32]} 11. Ke2 {[%clk 0:20:32.4]} 11... Nxa1 {[%clk 0:19:40.2]} 12. Bxh6 {[%clk 0:20:38.6]} 12... Bg4+ {[%clk 0:19:38.5]} 13. Ke1 {[%clk 0:20:43.4]} 13... Kh8 {[%clk 0:19:23.1]} 14. Bg5 {[%clk 0:20:43]} 14... Nc2+ {[%clk 0:19:22.8]} 15. Kd2 {[%clk 0:20:50.8]} 15... Nd4 {[%clk 0:19:15.1]} 16. Re1 {[%clk 0:20:49.9]} 16... Nf5 {[%clk 0:19:20]} 17. Qxe5 {[%clk 0:20:28.8]} 17... Bd4 {[%clk 0:19:10.2]} 18. Qf4 {[%clk 0:19:51.4]} 18... Qg8 {[%clk 0:18:45.5]} 19. d6 {[%clk 0:20:00.1]} 19... cxd6 {[%clk 0:18:52]} 20. Bxf7 {[%clk 0:19:50.7]} 20... Qxf7 {[%clk 0:18:59.9]} 21. Nb5 {[%clk 0:19:55.6]} 21... Be5 {[%clk 0:18:57.8]} 22. Qb4 {[%clk 0:19:32.4]} 22... Nd5 {[%clk 0:19:01.4]} 23. Qxg4 {[%clk 0:19:36.5]} 23... Qg6 {[%clk 0:18:49.3]} 24. Qh3+ {[%clk 0:19:22.3]} 24... Kg8 {[%clk 0:18:34.5]} 25. f4 {[%clk 0:19:16.3]} 25... Bxf4+ {[%clk 0:17:59.7]} 26. Bxf4 {[%clk 0:18:58.8]} 26... Nxf4 {[%clk 0:18:07.4]} 27. Qf3 {[%clk 0:19:00]} 27... Nxg2 {[%clk 0:17:19.4]} 28. Qxb7 {[%clk 0:18:45.7]} 28... Qg5+ {[%clk 0:16:59.7]} 29. Kc3 {[%clk 0:18:45.6]} 29... Rd8 {[%clk 0:17:01.3]} 30. Rg1 {[%clk 0:18:12.6]} 30... Nge3 {[%clk 0:16:48.5]} 31. Rxg5 {[%clk 0:18:15.5]} 31... Nh6 {[%clk 0:16:37]} 32. Qxa7 {[%clk 0:18:12]} 32... Rc8+ {[%clk 0:16:41.3]} 33. Kd2 {[%clk 0:18:17.9]} 33... Rc2+ {[%clk 0:16:47.8]} 34. Kxe3 {[%clk 0:18:26.3]} 34... Nf7 {[%clk 0:16:52.3]} 35. Nxd6 {[%clk 0:18:30.8]} 35... Rc1 {[%clk 0:16:40.2]} 36. Qxf7+ {[%clk 0:18:37.1]} 36... Kh7 {[%clk 0:16:40.9]} 37. Qxg7# {[%clk 0:18:45.7]} 1-0

[Event "Live Chess"]
[Site "Chess.com"]
[Date "2021.02.06"]
[Round "-"]
[White "BaMBo0zlEd"]
[Black "speedlimit1000"]
[Result "0-1"]
[CurrentPosition "6k1/1b3p1p/rP4p1/p7/8/6P1/Pb5P/5K2 w - -"]
[Timezone "UTC"]
[ECO "A49"]
[ECOUrl "https://www.chess.com/openings/Indian-Game-East-Indian-Przepiorka-Variation-3...Bg7-4.Bg2"]
[UTCDate "2021.02.06"]
[UTCTime "20:32:20"]
[WhiteElo "1121"]
[BlackElo "1433"]
[TimeControl "1200+10"]
[Termination "speedlimit1000 won by resignation"]
[StartTime "20:32:20"]
[EndDate "2021.02.06"]
[EndTime "20:40:11"]
[Link "https://www.chess.com/live/game/6472998119"]

1. d4 {[%clk 0:20:07.8]} 1... Nf6 {[%clk 0:20:06.7]} 2. Nf3 {[%clk 0:20:16.1]} 2... g6 {[%clk 0:20:14.2]} 3. g3 {[%clk 0:20:25.1]} 3... Bg7 {[%clk 0:20:22.4]} 4. Bg2 {[%clk 0:20:34.3]} 4... d6 {[%clk 0:20:26.8]} 5. O-O {[%clk 0:20:43.1]} 5... O-O {[%clk 0:20:34.5]} 6. Nc3 {[%clk 0:20:51.8]} 6... Nbd7 {[%clk 0:20:41.6]} 7. Re1 {[%clk 0:21:00.4]} 7... e5 {[%clk 0:20:48.8]} 8. dxe5 {[%clk 0:21:00.1]} 8... Nxe5 {[%clk 0:20:51]} 9. Nxe5 {[%clk 0:21:06.9]} 9... dxe5 {[%clk 0:20:59]} 10. e4 {[%clk 0:21:16]} 10... Qxd1 {[%clk 0:21:02.5]} 11. Rxd1 {[%clk 0:21:24.2]} 11... Be6 {[%clk 0:21:08.9]} 12. f4 {[%clk 0:21:24.3]} 12... exf4 {[%clk 0:21:10.4]} 13. Bxf4 {[%clk 0:21:32.5]} 13... c6 {[%clk 0:21:16.9]} 14. e5 {[%clk 0:21:36.4]} 14... Nd7 {[%clk 0:21:17.8]} 15. Re1 {[%clk 0:21:32.7]} 15... Rfe8 {[%clk 0:21:11.5]} 16. Re3 {[%clk 0:21:28.5]} 16... Bf5 {[%clk 0:21:15]} 17. Rae1 {[%clk 0:21:23.8]} 17... Bxc2 {[%clk 0:21:20.9]} 18. R1e2 {[%clk 0:21:26.3]} 18... Bf5 {[%clk 0:21:27.5]} 19. b4 {[%clk 0:21:26.9]} 19... a5 {[%clk 0:21:02.1]} 20. b5 {[%clk 0:21:33.1]} 20... Nb8 {[%clk 0:21:02]} 21. b6 {[%clk 0:21:40]} 21... Ra6 {[%clk 0:21:06.3]} 22. Rb2 {[%clk 0:21:22.4]} 22... Nd7 {[%clk 0:21:03.7]} 23. Na4 {[%clk 0:21:24.6]} 23... Nxe5 {[%clk 0:21:07.6]} 24. Bxe5 {[%clk 0:21:17.3]} 24... Bxe5 {[%clk 0:21:07.1]} 25. Rd2 {[%clk 0:21:24.4]} 25... Bc8 {[%clk 0:20:55.8]} 26. Rde2 {[%clk 0:21:25.1]} 26... Bd4 {[%clk 0:21:02.8]} 27. Rb2 {[%clk 0:21:04.4]} 27... Rxe3 {[%clk 0:21:05.3]} 28. Bxc6 {[%clk 0:21:07.7]} 28... Re2+ {[%clk 0:21:03.5]} 29. Kf1 {[%clk 0:21:15.6]} 29... Rxb2 {[%clk 0:21:03.7]} 30. Nxb2 {[%clk 0:21:20.3]} 30... Bxb2 {[%clk 0:21:09.6]} 31. Bxb7 {[%clk 0:21:29]} 31... Bxb7 {[%clk 0:21:17.4]} 0-1

[Event "Live Chess"]
[Site "Chess.com"]
[Date "2021.02.06"]
[Round "-"]
[White "hrishikeshbollini"]
[Black "Capawesome18"]
[Result "0-1"]
[CurrentPosition "6k1/p4pp1/1p1p3p/P2B4/1P1pP3/3P4/5PPP/3q2K1 w - -"]
[Timezone "UTC"]
[ECO "C46"]
[ECOUrl "https://www.chess.com/openings/Three-Knights-Opening-3...Bb4"]
[UTCDate "2021.02.06"]
[UTCTime "20:32:29"]
[WhiteElo "1017"]
[BlackElo "1023"]
[TimeControl "1200+10"]
[Termination "Capawesome18 won by checkmate"]
[StartTime "20:32:29"]
[EndDate "2021.02.06"]
[EndTime "20:43:16"]
[Link "https://www.chess.com/live/game/6472998844"]

1. e4 {[%clk 0:20:09.9]} 1... e5 {[%clk 0:20:07.4]} 2. Nf3 {[%clk 0:20:17.8]} 2... Nc6 {[%clk 0:20:15.1]} 3. Nc3 {[%clk 0:20:25.8]} 3... Bb4 {[%clk 0:20:19.7]} 4. Bc4 {[%clk 0:20:32.7]} 4... d6 {[%clk 0:20:23.2]} 5. d3 {[%clk 0:20:38.5]} 5... h6 {[%clk 0:20:31.1]} 6. Bd2 {[%clk 0:20:43.4]} 6... Nf6 {[%clk 0:20:35.6]} 7. O-O {[%clk 0:20:50.6]} 7... O-O {[%clk 0:20:38.6]} 8. Nd5 {[%clk 0:20:58]} 8... Bxd2 {[%clk 0:19:29.9]} 9. Nxf6+ {[%clk 0:21:04.5]} 9... Qxf6 {[%clk 0:19:35.6]} 10. Qxd2 {[%clk 0:21:13.2]} 10... Nd4 {[%clk 0:19:29.4]} 11. Nxd4 {[%clk 0:21:14.1]} 11... exd4 {[%clk 0:19:38.1]} 12. c3 {[%clk 0:21:17.8]} 12... c5 {[%clk 0:19:28.4]} 13. cxd4 {[%clk 0:21:22.3]} 13... cxd4 {[%clk 0:19:37]} 14. Bd5 {[%clk 0:21:14.7]} 14... Qg6 {[%clk 0:19:33.2]} 15. Qe2 {[%clk 0:20:54.9]} 15... Bh3 {[%clk 0:19:37.4]} 16. Qf3 {[%clk 0:21:03.4]} 16... Rab8 {[%clk 0:19:29.5]} 17. Qxh3 {[%clk 0:20:58.7]} 17... b6 {[%clk 0:19:10.8]} 18. b4 {[%clk 0:20:58.4]} 18... Rbc8 {[%clk 0:18:52.4]} 19. Rab1 {[%clk 0:20:53.4]} 19... Rc2 {[%clk 0:18:46.1]} 20. Bb3 {[%clk 0:20:35.3]} 20... Rc3 {[%clk 0:18:48]} 21. Rfd1 {[%clk 0:20:36.6]} 21... Rfc8 {[%clk 0:18:21.1]} 22. Bd5 {[%clk 0:20:27.3]} 22... R8c7 {[%clk 0:17:59.2]} 23. a4 {[%clk 0:20:13.7]} 23... Qg5 {[%clk 0:18:03.2]} 24. a5 {[%clk 0:20:11.5]} 24... Rc1 {[%clk 0:18:08.3]} 25. Qf3 {[%clk 0:19:51.8]} 25... Rxb1 {[%clk 0:18:14.9]} 26. Rxb1 {[%clk 0:19:57.6]} 26... Rc1+ {[%clk 0:18:22.6]} 27. Rxc1 {[%clk 0:20:03.9]} 27... Qxc1+ {[%clk 0:18:30.5]} 28. Qd1 {[%clk 0:20:08.7]} 28... Qxd1# {[%clk 0:18:39.2]} 0-1

[Event "Live Chess"]
[Site "Chess.com"]
[Date "2021.02.06"]
[Round "-"]
[White "nextspacejl"]
[Black "SriAnshDumpala"]
[Result "1-0"]
[CurrentPosition "1r2k1r1/8/1N2RQ2/2P3B1/1n4Pp/7P/PP6/6K1 b - -"]
[Timezone "UTC"]
[ECO "C60"]
[ECOUrl "https://www.chess.com/openings/Ruy-Lopez-Opening-Nurnberg-Variation"]
[UTCDate "2021.02.06"]
[UTCTime "20:32:31"]
[WhiteElo "1110"]
[BlackElo "872"]
[TimeControl "1200+10"]
[Termination "nextspacejl won by checkmate"]
[StartTime "20:32:31"]
[EndDate "2021.02.06"]
[EndTime "20:44:20"]
[Link "https://www.chess.com/live/game/6472999650"]

1. e4 {[%clk 0:20:08.9]} 1... e5 {[%clk 0:20:07.1]} 2. Nf3 {[%clk 0:20:17.1]} 2... Nc6 {[%clk 0:20:12.7]} 3. Bb5 {[%clk 0:20:23.3]} 3... f6 {[%clk 0:20:16.9]} 4. Nc3 {[%clk 0:20:29.6]} 4... a6 {[%clk 0:20:23.6]} 5. Bxc6 {[%clk 0:20:37.1]} 5... bxc6 {[%clk 0:20:31.2]} 6. d3 {[%clk 0:20:47]} 6... Be7 {[%clk 0:20:27.9]} 7. Be3 {[%clk 0:20:55.4]} 7... d5 {[%clk 0:20:29.9]} 8. exd5 {[%clk 0:20:58.9]} 8... cxd5 {[%clk 0:20:38.1]} 9. d4 {[%clk 0:21:02.9]} 9... e4 {[%clk 0:20:45]} 10. Nd2 {[%clk 0:21:03.5]} 10... c6 {[%clk 0:20:40.8]} 11. O-O {[%clk 0:21:00.3]} 11... Be6 {[%clk 0:20:43.7]} 12. h3 {[%clk 0:21:03.5]} 12... g6 {[%clk 0:20:42.7]} 13. Nb3 {[%clk 0:21:05.5]} 13... g5 {[%clk 0:20:29.5]} 14. Nc5 {[%clk 0:21:04.4]} 14... Bxc5 {[%clk 0:20:36.6]} 15. dxc5 {[%clk 0:21:10.1]} 15... h5 {[%clk 0:20:29.3]} 16. g4 {[%clk 0:20:40.1]} 16... h4 {[%clk 0:20:34.8]} 17. Na4 {[%clk 0:20:38.5]} 17... Ne7 {[%clk 0:20:36.1]} 18. Nb6 {[%clk 0:20:42.9]} 18... Rb8 {[%clk 0:20:38.6]} 19. c4 {[%clk 0:20:47.4]} 19... Rg8 {[%clk 0:20:30.3]} 20. cxd5 {[%clk 0:20:49.2]} 20... cxd5 {[%clk 0:20:37.9]} 21. Qa4+ {[%clk 0:20:50.9]} 21... Kf7 {[%clk 0:20:40.9]} 22. Qxa6 {[%clk 0:20:48.8]} 22... d4 {[%clk 0:20:40.6]} 23. Bd2 {[%clk 0:20:50.3]} 23... e3 {[%clk 0:20:41.6]} 24. fxe3 {[%clk 0:20:57.5]} 24... dxe3 {[%clk 0:20:48.8]} 25. Bxe3 {[%clk 0:21:04]} 25... Nc6 {[%clk 0:20:44.9]} 26. Na4 {[%clk 0:20:30.1]} 26... Nb4 {[%clk 0:20:42.7]} 27. Qe2 {[%clk 0:20:21.8]} 27... Qd7 {[%clk 0:20:06.4]} 28. Nb6 {[%clk 0:20:21.7]} 28... Qd3 {[%clk 0:19:56.8]} 29. Qf2 {[%clk 0:20:05.9]} 29... Qe4 {[%clk 0:19:47.5]} 30. Qxf6+ {[%clk 0:20:05.9]} 30... Ke8 {[%clk 0:19:53.2]} 31. Bxg5 {[%clk 0:19:43.2]} 31... Bd5 {[%clk 0:19:50.6]} 32. Rae1 {[%clk 0:19:34.8]} 32... Qxe1 {[%clk 0:19:50.3]} 33. Rxe1+ {[%clk 0:19:41.5]} 33... Be6 {[%clk 0:19:49.6]} 34. Rxe6# {[%clk 0:19:48.5]} 1-0

[Event "Live Chess"]
[Site "Chess.com"]
[Date "2021.02.06"]
[Round "-"]
[White "shasasha"]
[Black "mip67"]
[Result "1-0"]
[CurrentPosition "8/8/8/8/4QP2/k5Q1/2R5/6K1 b - -"]
[Timezone "UTC"]
[ECO "C48"]
[ECOUrl "https://www.chess.com/openings/Four-Knights-Game-Spanish-Variation-Classical-Variation"]
[UTCDate "2021.02.06"]
[UTCTime "20:32:27"]
[WhiteElo "802"]
[BlackElo "558"]
[TimeControl "1200+10"]
[Termination "shasasha won by checkmate"]
[StartTime "20:32:27"]
[EndDate "2021.02.06"]
[EndTime "20:41:52"]
[Link "https://www.chess.com/live/game/6473000112"]

1. e4 {[%clk 0:20:09]} 1... e5 {[%clk 0:20:07.1]} 2. Nf3 {[%clk 0:20:17.6]} 2... Nc6 {[%clk 0:20:10.5]} 3. Nc3 {[%clk 0:20:26.7]} 3... Nf6 {[%clk 0:20:16.1]} 4. Bb5 {[%clk 0:20:32.6]} 4... Bc5 {[%clk 0:20:17.7]} 5. Bxc6 {[%clk 0:20:39.5]} 5... bxc6 {[%clk 0:20:25.7]} 6. d3 {[%clk 0:20:46.4]} 6... d6 {[%clk 0:20:33.6]} 7. Bg5 {[%clk 0:20:55]} 7... Bb4 {[%clk 0:20:41.1]} 8. Bxf6 {[%clk 0:20:57.8]} 8... Bxc3+ {[%clk 0:20:49.5]} 9. bxc3 {[%clk 0:20:58.5]} 9... Qxf6 {[%clk 0:20:58.1]} 10. O-O {[%clk 0:21:03.3]} 10... O-O {[%clk 0:20:55.6]} 11. c4 {[%clk 0:21:09.3]} 11... Bg4 {[%clk 0:21:01.2]} 12. h3 {[%clk 0:21:06.1]} 12... Bxf3 {[%clk 0:21:08.4]} 13. gxf3 {[%clk 0:21:09.3]} 13... Qg5+ {[%clk 0:21:13.4]} 14. Kh1 {[%clk 0:21:14.3]} 14... Qh5 {[%clk 0:21:18.4]} 15. Kh2 {[%clk 0:21:19.3]} 15... c5 {[%clk 0:21:23.2]} 16. Rg1 {[%clk 0:21:26.2]} 16... Rab8 {[%clk 0:21:23.7]} 17. Rg2 {[%clk 0:21:24.7]} 17... g6 {[%clk 0:21:26.1]} 18. Kg1 {[%clk 0:21:32]} 18... Qxh3 {[%clk 0:21:30.5]} 19. Rh2 {[%clk 0:21:33.9]} 19... Qe6 {[%clk 0:21:35.1]} 20. c3 {[%clk 0:21:34.2]} 20... Qf6 {[%clk 0:21:41.7]} 21. Qa4 {[%clk 0:21:30.9]} 21... Qxf3 {[%clk 0:21:44.4]} 22. Qxa7 {[%clk 0:21:30.2]} 22... Qxd3 {[%clk 0:21:50.9]} 23. Qxc7 {[%clk 0:21:38.5]} 23... Qxc4 {[%clk 0:21:54.6]} 24. Qxd6 {[%clk 0:21:46.3]} 24... Qxc3 {[%clk 0:22:00.9]} 25. Rf1 {[%clk 0:21:29.5]} 25... Rfd8 {[%clk 0:21:58.5]} 26. Qc7 {[%clk 0:21:26.3]} 26... Qc4 {[%clk 0:22:02.5]} 27. a3 {[%clk 0:21:29.7]} 27... Rdc8 {[%clk 0:22:07.2]} 28. Qxe5 {[%clk 0:21:32.8]} 28... Qc1 {[%clk 0:22:03.3]} 29. Rxc1 {[%clk 0:21:39]} 29... c4 {[%clk 0:22:03]} 30. Qg3 {[%clk 0:21:34.2]} 30... Ra8 {[%clk 0:22:06.8]} 31. Qh3 {[%clk 0:21:38.6]} 31... Rc5 {[%clk 0:22:12.7]} 32. Qxh7+ {[%clk 0:21:39.3]} 32... Kf8 {[%clk 0:22:20.8]} 33. Qh8+ {[%clk 0:21:45.4]} 33... Ke7 {[%clk 0:22:27.9]} 34. Qxa8 {[%clk 0:21:52.4]} 34... Kd6 {[%clk 0:22:35.8]} 35. Qf8+ {[%clk 0:21:43.8]} 35... Kc6 {[%clk 0:22:42.9]} 36. Qxf7 {[%clk 0:21:49.8]} 36... Kb5 {[%clk 0:22:50.2]} 37. Qxg6 {[%clk 0:21:51.7]} 37... Ka4 {[%clk 0:22:57.3]} 38. Ra1 {[%clk 0:21:55.5]} 38... c3 {[%clk 0:23:04.6]} 39. e5 {[%clk 0:21:58.1]} 39... c2 {[%clk 0:23:13.1]} 40. Rc1 {[%clk 0:21:59.7]} 40... Kb3 {[%clk 0:23:21.4]} 41. f4 {[%clk 0:22:06.1]} 41... Kb2 {[%clk 0:23:29.7]} 42. Rcxc2+ {[%clk 0:22:12.2]} 42... Rxc2 {[%clk 0:23:37]} 43. Rxc2+ {[%clk 0:22:20]} 43... Kxa3 {[%clk 0:23:45.2]} 44. e6 {[%clk 0:22:27.2]} 44... Kb3 {[%clk 0:23:54.3]} 45. e7 {[%clk 0:22:36.3]} 45... Ka3 {[%clk 0:24:01.7]} 46. e8=Q {[%clk 0:22:43.5]} 46... Kb3 {[%clk 0:24:09.8]} 47. Qee4 {[%clk 0:22:46.3]} 47... Ka3 {[%clk 0:24:03.9]} 48. Qg3# {[%clk 0:22:45.3]} 1-0

[Event "Live Chess"]
[Site "Chess.com"]
[Date "2021.02.06"]
[Round "-"]
[White "Saif_Chess"]
[Black "AquaJollyPopsicle"]
[Result "0-1"]
[CurrentPosition "8/5pk1/6p1/P2Pp3/6q1/7r/7K/8 w - -"]
[Timezone "UTC"]
[ECO "B50"]
[ECOUrl "https://www.chess.com/openings/Sicilian-Defense-2.Nf3-d6"]
[UTCDate "2021.02.06"]
[UTCTime "20:32:35"]
[WhiteElo "882"]
[BlackElo "706"]
[TimeControl "1200+10"]
[Termination "AquaJollyPopsicle won by checkmate"]
[StartTime "20:32:35"]
[EndDate "2021.02.06"]
[EndTime "20:50:39"]
[Link "https://www.chess.com/live/game/6473000522"]

1. e4 {[%clk 0:19:53.8]} 1... c5 {[%clk 0:20:06.5]} 2. Nf3 {[%clk 0:18:47.6]} 2... d6 {[%clk 0:20:12]} 3. Bc4 {[%clk 0:18:51.7]} 3... Nf6 {[%clk 0:20:08.4]} 4. d3 {[%clk 0:17:31.9]} 4... Nc6 {[%clk 0:20:08.3]} 5. Nc3 {[%clk 0:17:41]} 5... g6 {[%clk 0:20:09.2]} 6. Nd5 {[%clk 0:17:42.3]} 6... Bg7 {[%clk 0:20:02.9]} 7. Bd2 {[%clk 0:17:44.4]} 7... O-O {[%clk 0:20:09.6]} 8. O-O {[%clk 0:17:53]} 8... e6 {[%clk 0:20:04.9]} 9. Nxf6+ {[%clk 0:18:00.2]} 9... Qxf6 {[%clk 0:20:11.2]} 10. Bc3 {[%clk 0:18:09.5]} 10... Qe7 {[%clk 0:20:16.1]} 11. Bxg7 {[%clk 0:18:16.1]} 11... Kxg7 {[%clk 0:20:24.5]} 12. c3 {[%clk 0:18:18.7]} 12... Bd7 {[%clk 0:20:27.3]} 13. d4 {[%clk 0:18:15.3]} 13... cxd4 {[%clk 0:20:33.1]} 14. cxd4 {[%clk 0:18:22.8]} 14... e5 {[%clk 0:20:40.7]} 15. d5 {[%clk 0:18:27.7]} 15... Na5 {[%clk 0:20:29.2]} 16. b3 {[%clk 0:18:32.1]} 16... Nxc4 {[%clk 0:20:32.6]} 17. bxc4 {[%clk 0:18:40.9]} 17... Rac8 {[%clk 0:20:33]} 18. Qb3 {[%clk 0:18:45.8]} 18... Kg8 {[%clk 0:20:37.3]} 19. Rac1 {[%clk 0:18:50.8]} 19... Rc7 {[%clk 0:20:44.5]} 20. a4 {[%clk 0:18:58.8]} 20... Rfc8 {[%clk 0:20:51.5]} 21. Nd2 {[%clk 0:19:03.8]} 21... Qg5 {[%clk 0:20:53.9]} 22. Qb4 {[%clk 0:18:57.2]} 22... Bh3 {[%clk 0:20:57.2]} 23. g3 {[%clk 0:19:00.6]} 23... Bxf1 {[%clk 0:21:00]} 24. Rxf1 {[%clk 0:19:09.9]} 24... Rc5 {[%clk 0:20:43.1]} 25. Qxb7 {[%clk 0:19:07.6]} 25... Qxd2 {[%clk 0:20:48.9]} 26. Qxa7 {[%clk 0:19:08.3]} 26... Rxc4 {[%clk 0:20:52.5]} 27. Qd7 {[%clk 0:19:08.9]} 27... Qb4 {[%clk 0:20:49.4]} 28. Ra1 {[%clk 0:19:01.6]} 28... Rc1+ {[%clk 0:20:52.3]} 29. Rxc1 {[%clk 0:19:09.5]} 29... Rxc1+ {[%clk 0:20:59.9]} 30. Kg2 {[%clk 0:19:18.3]} 30... Qxe4+ {[%clk 0:21:07.5]} 31. Kh3 {[%clk 0:19:21.6]} 31... Rc2 {[%clk 0:21:07.2]} 32. Qd8+ {[%clk 0:19:26.5]} 32... Kg7 {[%clk 0:21:14.2]} 33. Qxd6 {[%clk 0:19:26.2]} 33... Rxf2 {[%clk 0:20:15.4]} 34. a5 {[%clk 0:18:50.7]} 34... Qf5+ {[%clk 0:20:20.2]} 35. g4 {[%clk 0:18:52]} 35... Rf3+ {[%clk 0:20:25.5]} 36. Kh4 {[%clk 0:19:00.3]} 36... Rf4 {[%clk 0:20:29.9]} 37. h3 {[%clk 0:18:37.9]} 37... h5 {[%clk 0:20:21.1]} 38. Kg3 {[%clk 0:17:25.3]} 38... Qd3+ {[%clk 0:20:20.5]} 39. Kh4 {[%clk 0:17:29.5]} 39... Qf5 {[%clk 0:20:14.8]} 40. Kg3 {[%clk 0:17:36.2]} 40... Rf3+ {[%clk 0:20:19.3]} 41. Kh4 {[%clk 0:17:30.8]} 41... hxg4 {[%clk 0:20:22]} 42. hxg4 {[%clk 0:17:34.8]} 42... Rf4 {[%clk 0:20:23.5]} 43. Kg3 {[%clk 0:17:27.6]} 43... Qxg4+ {[%clk 0:20:31.9]} 44. Kh2 {[%clk 0:17:29.1]} 44... Rf5 {[%clk 0:20:39.1]} 45. Qa3 {[%clk 0:16:37.3]} 45... Rh5+ {[%clk 0:20:46.7]} 46. Qh3 {[%clk 0:16:44.8]} 46... Rxh3# {[%clk 0:20:54.8]} 0-1